bitfinex-derivatives/quotes_ETHF0:USTF0_20230401
["timestamp","ask_amount","ask_price","bid_price","bid_amount"]
[1680382268215,0.17864189,1818.3,1818.2,3.2078]
[1680382268709,1.17864189,1818.3,1818.2,3.2078]
[1680382270815,2.86781091,1818.3,1818.2,3.2078]
[1680382272816,3.15624825,1818.3,1818.1,1.15207001]
[1680382273016,1.6863439,1818.2,1818.1,1.15207001]
[1680382273217,1.86222725,1818.2,1818.1,1.15207001]
[1680382274419,1.86222725,1818.2,1818.0,1.30207001]
[1680382274621,1.0,1818.1,1818.0,1.30207001]
[1680382274915,1.8653439,1818.1,1818.0,0.83204949]
[1680382275216,2.03564059,1818.1,1818.0,0.83204949]
[1680382275417,0.17029669,1818.1,1818.0,0.83204949]
[1680382275618,0.17029669,1818.1,1818.0,1.98518526]
[1680382277022,0.99529669,1818.1,1818.0,1.98518526]
[1680382279024,0.99529669,1818.1,1818.0,0.83204949]
[1680382279918,0.99529669,1818.1,1818.0,1.98448694]
[1680382280131,0.99529669,1818.1,1818.0,0.83204949]
[1680382280721,0.99529669,1818.1,1818.0,2.27335335]
[1680382281114,0.17029669,1818.1,1818.0,2.27335335]
[1680382289429,0.17029669,1818.1,1818.0,0.83204949]
[1680382289633,0.17029669,1818.1,1818.0,2.27335335]
[1680382290223,0.17029669,1818.1,1818.0,0.83204949]
[1680382290531,0.17029669,1818.1,1818.0,2.27335335]
[1680382293133,0.12760498,1818.1,1818.0,2.27335335]
[1680382297237,0.95260498,1818.1,1818.0,1.98495196]
[1680382301441,1.81794888,1818.1,1818.0,1.98495196]
[1680382301647,0.94760498,1818.1,1818.0,1.98495196]
[1680382301831,1.94760498,1818.1,1818.0,1.98495196]
[1680382302143,1.94760498,1818.1,1818.0,1.98496905]
[1680382302640,2.81294888,1818.1,1818.0,1.30290247]
[1680382303541,2.81294888,1818.1,1818.0,1.01512635]
[1680382304339,3.92421134,1818.1,1818.0,1.01512635]
[1680382304531,3.92421134,1818.1,1818.0,0.72674683]
[1680382305342,1.0,1818.0,1817.8,1.15290247]
[1680382305546,1.65,1817.9,1817.8,1.82355059]
[1680382305746,1.65,1817.9,1817.8,1.15290247]
[1680382305948,1.76639257,1817.9,1817.8,1.15290247]
[1680382306539,2.59139257,1817.9,1817.8,1.15290247]
[1680382306839,3.45675099,1817.9,1817.6,1.15290247]
[1680382307039,1.644,1817.7,1817.6,1.15290247]
[1680382308052,1.644,1817.7,1817.5,1.15290247]
[1680382308348,1.825,1817.6,1817.5,1.15290247]
[1680382310851,1.825,1817.6,1817.4,1.15290247]
[1680382311052,0.82,1817.5,1817.4,1.80419671]
[1680382311250,0.82,1817.5,1817.4,1.15290247]
[1680382312845,0.82,1817.5,1817.3,4.36070247]
[1680382314844,0.82,1817.5,1817.3,3.2078]
[1680382316950,0.824,1817.4,1817.3,3.2078]
[1680382319755,0.9786247,1817.4,1817.3,3.2078]
[1680382322358,1.8006247,1817.4,1817.3,3.2078]
[1680382327162,1.0,1817.3,1817.1,3.2078]
[1680382327464,0.82,1817.2,1817.1,3.2078]
[1680382328360,1.645,1817.2,1817.0,0.1]
[1680382328666,1.825,1817.1,1817.0,0.1]
[1680382333374,2.65,1817.1,1817.0,0.1]
[1680382334471,1.0,1817.0,1816.7,3.2078]
[1680382334666,0.825,1816.8,1816.7,3.2078]
[1680382339179,1.65,1816.8,1816.5,3.74842642]
[1680382339476,0.825,1816.6,1816.5,3.74842642]
[1680382339872,0.82,1816.6,1816.5,3.74842642]
[1680382341071,0.821,1816.7,1816.6,1.0]
[1680382341273,0.18221175,1816.9,1816.6,1.817]
[1680382341469,0.18221175,1816.9,1816.7,3.2078]
[1680382341864,0.18221175,1816.9,1816.8,1.0]
[1680382342974,0.18221175,1816.9,1816.8,1.825]
[1680382343475,0.821,1817.2,1816.8,1.825]
[1680382346270,0.824,1817.0,1816.7,3.2078]
[1680382347483,1.101,1817.0,1816.7,3.2078]
[1680382349877,0.15608508,1816.9,1816.7,3.2078]
[1680382350080,0.15608508,1816.9,1816.8,1.0]
[1680382357282,1.098,1817.2,1816.8,1.0]
[1680382360686,1.098,1817.2,1816.9,3.2078]
[1680382360990,1.098,1817.2,1817.0,1.0]
[1680382361594,1.098,1817.2,1816.9,3.2078]
[1680382362790,1.096,1817.2,1816.9,3.2078]
[1680382364194,2.096,1817.2,1816.9,3.2078]
[1680382364894,0.15613675,1817.1,1816.9,3.2078]
[1680382365082,2.096,1817.2,1816.9,3.2078]
[1680382365287,1.096,1817.2,1816.9,3.2078]
[1680382365496,1.096,1817.2,1816.9,4.07164975]
[1680382365989,2.096,1817.2,1816.9,4.07164975]
[1680382366185,1.096,1817.2,1816.9,4.07164975]
[1680382366590,2.66980174,1817.2,1816.9,4.07164975]
[1680382366996,1.66980174,1817.2,1816.9,4.07164975]
[1680382367596,2.66980174,1817.2,1816.9,4.07164975]
[1680382368098,1.66980174,1817.2,1816.9,4.07164975]
[1680382369999,1.66980174,1817.2,1817.0,0.86384975]
[1680382370299,1.66980174,1817.2,1817.0,0.86584975]
[1680382370914,0.57380174,1817.1,1817.0,0.002]
[1680382372407,0.57380174,1817.2,1817.0,1.96684975]
[1680382372612,0.57380174,1817.1,1817.0,1.96684975]
[1680382372914,0.57380174,1817.1,1817.0,2.96684975]
[1680382374513,0.57380174,1817.1,1817.0,1.96684975]
[1680382376510,0.57380174,1817.1,1817.0,1.103]
[1680382376710,0.57380174,1817.1,1817.0,2.25590247]
[1680382377117,0.57380174,1817.1,1817.0,1.15490247]
[1680382379714,0.86535842,1817.1,1817.0,0.86771241]
[1680382379915,0.98529787,1817.1,1817.0,0.86771241]
[1680382386534,0.98529787,1817.1,1817.0,1.15490247]
[1680382388831,0.98566232,1817.1,1817.0,1.15490247]
[1680382389029,0.98566232,1817.1,1817.0,1.80755693]
[1680382409650,0.98566232,1817.1,1817.0,1.15490247]
[1680382409846,0.11993945,1817.1,1817.0,1.15490247]
[1680382410248,1.15360636,1817.1,1817.0,1.15490247]
[1680382410545,1.27365147,1817.1,1817.0,1.15490247]
[1680382410941,1.27365147,1817.1,1817.0,0.002]
[1680382411143,2.27365147,1817.1,1817.0,0.002]
[1680382411947,1.27365147,1817.1,1817.0,0.86824658]
[1680382415961,0.98560276,1817.1,1817.0,2.63245617]
[1680382416367,1.56266775,1817.1,1817.0,2.4795537]
[1680382416659,0.6971101,1817.1,1817.0,2.4795537]
[1680382416863,1.56266775,1817.1,1817.0,2.4795537]
[1680382417065,0.98560276,1817.1,1817.0,3.63436911]
[1680382417460,1.56265442,1817.1,1817.0,3.63436911]
[1680382417667,0.98560276,1817.1,1817.0,3.63436911]
[1680382418766,0.98560276,1817.1,1817.0,1.80936911]
[1680382418962,1.0,1817.0,1816.9,0.38243262]
[1680382419161,1.0,1816.9,1816.8,0.38243262]
[1680382419366,3.79186481,1816.9,1816.8,0.38243262]
[1680382420072,1.638,1816.9,1816.6,4.36261541]
[1680382420367,1.40151093,1816.7,1816.6,4.36261541]
[1680382420563,0.825,1816.7,1816.6,5.00469862]
[1680382422370,0.825,1816.7,1816.6,4.36261541]
[1680382424661,0.97604433,1816.7,1816.6,4.36261541]
[1680382426967,0.15104433,1816.7,1816.6,4.36261541]
[1680382427770,0.15104433,1816.7,1816.6,5.36261541]
[1680382427959,0.15104433,1816.7,1816.6,6.827957]
[1680382428165,0.57651093,1816.9,1816.6,6.827957]
[1680382428366,0.57651093,1816.9,1816.8,3.78436236]
[1680382431371,2.26127732,1817.0,1816.8,3.2078]
[1680382431570,2.26127732,1817.0,1816.9,0.5765074]
[1680382432171,1.39651093,1817.0,1816.9,0.5765074]
[1680382435276,1.68476639,1817.0,1816.8,0.5765074]
[1680382435580,2.26075631,1817.0,1816.8,0.5765074]
[1680382435781,0.57598992,1816.9,1816.8,0.5765074]
[1680382437075,1.40098992,1816.9,1816.8,0.5765074]
[1680382438178,0.825,1816.9,1816.8,0.5765074]
[1680382438981,1.40098992,1816.9,1816.8,0.5765074]
[1680382439875,1.55208669,1816.9,1816.8,0.5765074]
[1680382444279,0.97609677,1816.9,1816.8,3.2078]
[1680382445572,0.28633551,1817.2,1816.8,12.97282796]
[1680382445774,0.57610128,1817.3,1817.1,4.8518]
[1680382445977,0.57610128,1817.3,1817.2,1.40142618]
[1680382446183,0.57611349,1817.3,1817.2,1.40142618]
[1680382446984,0.57611349,1817.3,1817.2,0.57642618]
[1680382453188,0.63842301,1817.3,1817.1,4.60722618]
[1680382463697,0.06230952,1817.3,1817.2,0.57642618]
[1680382463903,2.39811349,1817.4,1817.2,0.57642618]
[1680382464200,2.39811349,1817.4,1817.3,3.2078]
[1680382464400,1.39811349,1817.4,1817.3,3.2078]
[1680382467904,0.822,1817.4,1817.3,3.2078]
[1680382468699,0.822,1817.4,1817.1,3.78422618]
[1680382468901,0.57553672,1817.3,1817.1,3.78422618]
[1680382469605,2.48603286,1817.2,1816.9,0.57642618]
[1680382469994,2.48603286,1817.2,1817.0,0.57642618]
[1680382469995,1.0,1817.1,1817.0,0.57642618]
[1680382470199,1.0,1817.1,1817.0,3.78422618]
[1680382471104,0.57553672,1817.1,1816.9,3.78422618]
[1680382472007,0.57553672,1817.1,1817.0,0.57642618]
[1680382477213,1.40053672,1817.1,1817.0,0.57642618]
[1680382481509,0.825,1817.1,1817.0,2.44114719]
[1680382481810,0.66103286,1817.2,1817.0,1.86465275]
[1680382482112,0.66103286,1817.2,1817.1,3.78428511]
[1680382482505,0.66103286,1817.2,1817.1,0.57648511]
[1680382482910,0.66103286,1817.2,1817.1,3.78428511]
[1680382483106,0.66159195,1817.2,1817.1,3.78428511]
[1680382483917,0.08549614,1817.2,1817.1,3.78428511]
[1680382484214,0.66170828,1817.2,1817.1,3.78428511]
[1680382485017,0.08549614,1817.2,1817.1,3.78428511]
[1680382486015,0.08549614,1817.2,1817.1,4.64893786]
[1680382487317,0.08549614,1817.2,1817.1,4.07245275]
[1680382487816,0.08549614,1817.2,1817.1,3.78463885]
[1680382488324,0.08549614,1817.2,1817.1,1.4414916]
[1680382490725,0.08549614,1817.2,1817.1,0.86465275]
[1680382491336,1.08549614,1817.2,1817.1,0.86465275]
[1680382491830,0.08549614,1817.2,1817.1,0.86465275]
[1680382493035,1.08549614,1817.2,1817.1,0.86465275]
[1680382494130,0.08549614,1817.2,1817.1,0.86465275]
[1680382494532,0.66202607,1817.2,1817.1,4.07245275]
[1680382494733,0.08549614,1817.2,1817.1,4.07245275]
[1680382495133,0.66204095,1817.2,1817.1,4.07245275]
[1680382497839,0.08549614,1817.2,1817.1,4.07245275]
[1680382498044,0.66205561,1817.2,1817.1,4.07245275]
[1680382498444,0.08549614,1817.2,1817.1,4.07245275]
[1680382499242,0.66206002,1817.2,1817.1,5.17866563]
[1680382499544,0.63800736,1817.2,1817.1,6.17866563]
[1680382499845,0.06144348,1817.2,1817.1,6.8610336]
[1680382500449,0.06144348,1817.2,1817.1,7.14925001]
[1680382500748,0.06144348,1817.2,1817.1,13.38102762]
[1680382506352,0.57656388,1817.4,1817.2,1.0]
[1680382506550,0.57656388,1817.4,1817.3,4.07268565]
[1680382506752,0.57656388,1817.4,1817.3,5.07268565]
[1680382509149,0.57656388,1817.4,1817.3,4.07268565]
[1680382511147,0.57656388,1817.4,1817.3,4.64909018]
[1680382514061,0.57656388,1817.4,1817.3,3.78420453]
[1680382515259,2.26613988,1817.5,1817.3,3.78420453]
[1680382516861,1.39656388,1817.4,1817.2,1.44129018]
[1680382517168,1.825,1817.3,1817.2,4.07268565]
[1680382517362,0.825,1817.3,1817.2,4.07268565]
[1680382517560,0.825,1817.3,1817.2,3.78409879]
[1680382518064,0.90000295,1817.3,1817.2,4.64898444]
[1680382521265,1.47656683,1817.3,1817.2,4.64898444]
[1680382522064,1.47656683,1817.3,1817.2,4.07268565]
[1680382522272,1.47656683,1817.3,1817.2,4.6490916]
[1680382523170,1.47656683,1817.3,1817.2,4.07268565]
[1680382526979,0.65156683,1817.3,1817.2,4.07268565]
[1680382536078,0.65156683,1817.3,1817.2,3.2078]
[1680382536277,0.65156683,1817.3,1817.2,0.86529609]
[1680382536576,0.65156683,1817.3,1817.2,3.2078]
[1680382536972,0.65156683,1817.3,1817.2,4.36098087]
[1680382537580,0.65156683,1817.3,1817.2,3.2078]
[1680382537880,0.65156683,1817.3,1817.2,4.36098087]
[1680382539379,1.51614283,1817.3,1817.2,4.36098087]
[1680382540779,0.65156683,1817.3,1817.2,5.18598087]
[1680382541476,1.51657746,1817.3,1817.2,5.18598087]
[1680382541677,0.93957895,1817.3,1817.2,5.18598087]
[1680382542074,0.65200967,1817.3,1817.2,5.18598087]
[1680382543079,1.51658567,1817.3,1817.2,5.18598087]
[1680382543281,1.51658567,1817.3,1817.2,5.8683346]
[1680382544180,0.93957895,1817.3,1817.2,5.18598087]
[1680382544380,0.93957895,1817.3,1817.2,5.86833926]
[1680382547582,0.65225697,1817.3,1817.2,5.86833926]
[1680382548284,1.51683297,1817.3,1817.2,5.86833926]
[1680382548583,0.65225697,1817.3,1817.2,5.86833926]
[1680382548785,1.5168458,1817.3,1817.2,5.86833926]
[1680382548982,0.6522698,1817.3,1817.2,5.86833926]
[1680382549579,0.93957895,1817.3,1817.2,5.86833926]
[1680382550484,1.76457895,1817.3,1817.2,1.15318087]
[1680382551576,1.76457895,1817.3,1817.1,1.15318087]
[1680382551778,0.57730314,1817.2,1817.1,1.83557221]
[1680382552175,0.65242273,1817.2,1817.1,1.83557221]
[1680382552782,1.51699873,1817.2,1817.1,1.83557221]
[1680382555983,0.93969559,1817.2,1817.1,1.83557221]
[1680382556286,1.5169572,1817.2,1817.1,1.83557221]
[1680382557988,0.93969559,1817.2,1817.1,1.83557221]
[1680382558190,1.51695899,1817.2,1817.1,1.83557221]
[1680382559191,0.93969559,1817.2,1817.1,1.83557221]
[1680382559787,1.51691263,1817.2,1817.1,1.83557221]
[1680382559985,0.93969559,1817.2,1817.1,1.83557221]
[1680382565490,0.07511959,1817.2,1817.1,2.80018087]
[1680382565685,0.65241948,1817.2,1817.1,4.77047656]
[1680382565890,0.57729989,1817.2,1817.1,4.77047656]
[1680382567289,0.57729989,1817.3,1817.2,1.0]
[1680382567597,0.57729989,1817.3,1817.2,5.70819452]
[1680382567791,0.65247249,1817.3,1817.2,6.86269845]
[1680382568293,0.65247249,1817.3,1817.2,6.86261911]
[1680382572789,1.51839895,1817.3,1817.2,6.86261911]
[1680382573296,0.65247249,1817.3,1817.2,6.86261911]
[1680382573998,1.51839895,1817.3,1817.2,6.86261911]
[1680382574300,0.65247249,1817.3,1817.2,6.86261911]
[1680382574900,1.51839895,1817.3,1817.2,6.86261911]
[1680382575197,0.65247249,1817.3,1817.2,6.86261911]
[1680382576900,1.51839895,1817.3,1817.2,6.86261911]
[1680382577201,0.94109906,1817.3,1817.2,6.18022459]
[1680382577400,1.51831947,1817.3,1817.2,6.86257987]
[1680382577592,1.5183156,1817.3,1817.2,6.86257529]
[1680382578197,0.94109906,1817.3,1817.2,6.18022459]
[1680382578497,1.51831053,1817.3,1817.2,6.86257405]
[1680382578702,0.94109906,1817.3,1817.2,6.18022459]
[1680382580000,1.51831258,1817.3,1817.2,6.86257427]
[1680382580402,1.51831258,1817.3,1817.2,6.86257669]
[1680382580699,1.51830934,1817.3,1817.2,5.86257568]
[1680382580899,0.94109906,1817.3,1817.2,5.18022459]
[1680382583996,1.51830191,1817.3,1817.2,5.86257904]
[1680382584199,0.94109906,1817.3,1817.2,5.18022459]
[1680382585704,0.94109906,1817.3,1817.2,4.36222459]
[1680382588212,0.94109906,1817.3,1817.2,4.06222459]
[1680382589219,0.94109906,1817.3,1817.2,2.9078]
[1680382590415,0.0751726,1817.3,1817.2,4.74456313]
[1680382590714,0.5771917,1817.3,1817.2,4.74456313]
[1680382590914,0.65244352,1817.3,1817.2,4.74456313]
[1680382593917,1.51837514,1817.3,1817.2,4.06222459]
[1680382594219,0.65245566,1817.3,1817.2,5.4269117]
[1680382594821,0.65245566,1817.3,1817.2,5.42674347]
[1680382598125,0.65245566,1817.3,1817.2,5.42636805]
[1680382598818,0.65245566,1817.3,1817.2,4.27248711]
[1680382599019,0.65245566,1817.3,1817.2,5.42636914]
[1680382599420,0.65245566,1817.3,1817.2,4.27248711]
[1680382599627,0.65245566,1817.3,1817.2,5.42638542]
[1680382600224,0.65245566,1817.3,1817.2,5.42636742]
[1680382600619,0.94117828,1817.3,1817.2,4.74402232]
[1680382601023,0.94117828,1817.3,1817.2,5.4263644]
[1680382601225,0.65243984,1817.3,1817.2,5.4263644]
[1680382606232,0.65243984,1817.3,1817.2,4.27248409]
[1680382607031,0.65243984,1817.3,1817.2,5.09748409]
[1680382612336,0.65243984,1817.3,1817.2,6.53856613]
[1680382614235,0.65243984,1817.3,1817.2,5.09748409]
[1680382614835,0.65243984,1817.3,1817.2,6.53856613]
[1680382615038,0.65243984,1817.3,1817.2,5.09748409]
[1680382615335,0.65243984,1817.3,1817.2,6.53856613]
[1680382622435,0.65243984,1817.3,1817.2,5.09748409]
[1680382625640,0.65243984,1817.3,1817.2,6.53856613]
[1680382632739,0.65243984,1817.3,1817.2,7.53856613]
[1680382646949,0.07525182,1817.3,1817.2,7.53856613]
[1680382647448,1.44311448,1817.4,1817.3,1.0]
[1680382647647,1.44323814,1817.4,1817.3,3.66140796]
[1680382648244,1.4432327,1817.4,1817.3,3.66140796]
[1680382650155,1.4432327,1817.4,1817.3,2.50734208]
[1680382650355,1.4432327,1817.4,1817.3,3.66135628]
[1680382650753,0.57730624,1817.4,1817.3,3.94842412]
[1680382653057,0.64798146,1817.4,1817.3,2.50734208]
[1680382654860,0.64798146,1817.4,1817.3,3.94842412]
[1680382656659,0.64798146,1817.4,1817.3,2.94842412]
[1680382656862,0.64798146,1817.4,1817.3,1.50734208]
[1680382661565,0.64798146,1817.4,1817.3,2.50734208]
[1680382663162,0.64798146,1817.4,1817.3,1.50734208]
[1680382666664,0.64798146,1817.4,1817.3,2.66127776]
[1680382666865,1.50607013,1817.4,1817.3,1.83630143]
[1680382667061,0.93660168,1817.4,1817.3,1.83630143]
[1680382671269,0.07067522,1817.4,1817.3,0.68234208]
[1680382671569,0.93660168,1817.4,1817.3,1.68552058]
[1680382671778,3.15701525,1817.4,1817.3,0.57740151]
[1680382672071,3.85831022,1817.4,1817.3,0.57740151]
[1680382672470,4.85831022,1817.4,1817.3,0.57740151]
[1680382672670,4.17820275,1817.4,1817.2,1.25974352]
[1680382672872,1.9740839,1817.3,1817.2,1.25974352]
[1680382673169,2.9740839,1817.3,1817.2,1.25974352]
[1680382676076,2.9740839,1817.3,1817.2,0.68234201]
[1680382676777,2.68499025,1817.3,1817.2,1.25974352]
[1680382676976,2.68499025,1817.3,1817.2,0.68234201]
[1680382676977,2.9740839,1817.3,1817.2,0.68234201]
[1680382678277,1.82,1817.3,1817.2,0.68234201]
[1680382680384,2.6845434,1817.3,1817.2,0.68234201]
[1680382683084,2.77549736,1817.3,1817.2,0.68234201]
[1680382683380,1.91095396,1817.3,1817.2,0.68234201]
[1680382683586,2.77545571,1817.3,1817.2,0.68234201]
[1680382683978,1.91095396,1817.3,1817.2,0.68234201]
[1680382684185,2.77545542,1817.3,1817.2,0.68234201]
[1680382700405,2.77507778,1817.3,1817.2,0.68234201]
[1680382700699,2.77507295,1817.3,1817.2,0.68234201]
[1680382700997,3.06503786,1817.3,1817.2,0.68234201]
[1680382701503,1.91095396,1817.3,1817.2,0.67672172]
[1680382702105,3.06503786,1817.3,1817.2,0.67672172]
[1680382703304,1.91095396,1817.3,1817.2,0.67672172]
[1680382703512,3.06503786,1817.3,1817.2,0.67672172]
[1680382711714,3.06503786,1817.3,1817.0,3.78520151]
[1680382712019,0.82,1817.1,1817.0,3.78520151]
[1680382712217,1.6847759,1817.1,1817.0,3.78520151]
[1680382712416,1.77512668,1817.1,1817.0,3.78520151]
[1680382714418,1.77512668,1817.1,1817.0,4.07390227]
[1680382716314,0.91035078,1817.1,1817.0,4.07390227]
[1680382718221,2.06443468,1817.1,1817.0,4.07390227]
[1680382719419,2.06443468,1817.1,1817.0,0.86610227]
[1680382719613,2.06443468,1817.1,1817.0,1.44347361]
[1680382720312,3.06443468,1817.1,1817.0,0.86610227]
[1680382722027,2.06443468,1817.1,1817.0,0.86610227]
[1680382725224,2.06443468,1817.1,1817.0,1.44341119]
[1680382727121,2.06943468,1817.1,1817.0,1.44341119]
[1680382728124,2.06943468,1817.1,1817.0,0.86610227]
[1680382728530,1.24443468,1817.1,1817.0,0.86610227]
[1680382728824,1.24443468,1817.1,1817.0,1.44337974]
[1680382729026,1.24443468,1817.1,1817.0,0.86610227]
[1680382730127,2.06943468,1817.1,1817.0,0.57727635]
[1680382730423,2.06943468,1817.1,1817.0,1.44337862]
[1680382730629,2.06943468,1817.1,1817.0,0.57727635]
[1680382731629,1.78119944,1817.1,1817.0,0.86610227]
[1680382732326,0.91535078,1817.1,1817.0,0.86610227]
[1680382732726,2.06943468,1817.1,1817.0,0.86610227]
[1680382735532,3.06943468,1817.1,1817.0,0.86610227]
[1680382736331,3.06943468,1817.1,1817.0,0.5772816]
[1680382736534,3.06943468,1817.1,1817.0,1.44338387]
[1680382740636,2.06943468,1817.1,1817.0,1.44338387]
[1680382742638,2.06943468,1817.1,1817.0,1.44347153]
[1680382742832,2.06943468,1817.1,1817.0,0.86610227]
[1680382743740,2.06943468,1817.1,1817.0,1.44346758]
[1680382744139,2.06943468,1817.1,1817.0,0.86610227]
[1680382744537,2.06943468,1817.1,1817.0,1.4434679]
[1680382744735,2.06943468,1817.1,1817.0,0.86610227]
[1680382745438,2.06943468,1817.1,1817.0,0.57741622]
[1680382745940,3.06943468,1817.1,1817.0,0.57741622]
[1680382747440,2.06943468,1817.1,1817.0,1.44351849]
[1680382747734,2.06943468,1817.1,1817.0,0.57741622]
[1680382747939,2.06943468,1817.1,1817.0,1.44351849]
[1680382753945,2.06943468,1817.1,1817.0,1.44341537]
[1680382754645,2.06943468,1817.1,1817.0,0.86610227]
[1680382762759,0.91535078,1817.1,1817.0,0.86610227]
[1680382771255,3.04019311,1817.1,1817.0,0.57720715]
[1680382777061,4.04019311,1817.1,1817.0,0.57720715]
[1680382778274,3.04019311,1817.1,1817.0,0.57720715]
[1680382780167,4.04019311,1817.1,1817.0,0.57720715]
[1680382780978,4.04019311,1817.1,1817.0,0.5710218]
[1680382781670,4.04019311,1817.1,1816.9,0.86610227]
[1680382781875,2.97988036,1817.0,1816.9,0.86610227]
[1680382782075,3.07046832,1817.0,1816.9,0.86610227]
[1680382783878,2.07046832,1817.0,1816.9,0.86610227]
[1680382785978,2.07046832,1817.0,1816.8,0.86610227]
[1680382787077,0.82,1816.9,1816.8,0.86610227]
[1680382787879,0.91060754,1816.9,1816.8,0.86610227]
[1680382791581,1.77661983,1816.9,1816.8,0.86610227]
[1680382799283,1.77658322,1816.9,1816.8,0.86532319]
[1680382801782,0.91060754,1816.9,1816.8,0.86532319]
[1680382801978,1.77660713,1816.9,1816.8,0.86532319]
[1680382803289,1.77660713,1816.9,1816.8,4.362483]
[1680382803483,1.77660713,1816.9,1816.8,3.2078]
[1680382803986,1.77660713,1816.9,1816.8,4.07305457]
[1680382805488,2.35391851,1816.9,1816.8,4.362483]
[1680382805685,1.77660713,1816.9,1816.8,4.362483]
[1680382806379,1.77660713,1816.9,1816.8,3.2078]
[1680382806577,1.77660713,1816.9,1816.8,4.07329044]
[1680382806988,1.77660713,1816.9,1816.8,3.2078]
[1680382807191,1.77660713,1816.9,1816.8,4.07328803]
[1680382807488,1.77660713,1816.9,1816.8,3.2078]
[1680382807787,1.77660713,1816.9,1816.8,4.07334175]
[1680382807990,1.77660713,1816.9,1816.8,3.2078]
[1680382808589,1.77660713,1816.9,1816.8,4.07335394]
[1680382809383,1.77660713,1816.9,1816.8,3.2078]
[1680382810692,1.77660713,1816.9,1816.8,4.07341509]
[1680382810892,1.77660713,1816.9,1816.8,3.2078]
[1680382811692,0.91060754,1816.9,1816.8,3.2078]
[1680382813693,0.91060754,1816.9,1816.8,4.362483]
[1680382813896,0.91560754,1816.9,1816.8,4.362483]
[1680382815696,2.0704879,1816.9,1816.8,4.362483]
[1680382821186,2.07011974,1816.9,1816.8,4.362483]
[1680382823798,2.07011974,1816.9,1816.8,1.154683]
[1680382827106,2.06411974,1816.9,1816.8,1.154683]
[1680382830702,2.06411974,1816.9,1816.7,2.154683]
[1680382831007,0.86658792,1816.8,1816.7,2.154683]
[1680382831209,0.86658792,1816.8,1816.7,1.78434905]
[1680382831611,0.86658792,1816.8,1816.7,2.78434905]
[1680382831808,0.86658792,1816.8,1816.7,1.78434905]
[1680382832014,0.86658792,1816.8,1816.7,2.78434905]
[1680382832510,0.95686553,1816.8,1816.7,2.78434905]
[1680382834712,0.95686553,1816.8,1816.7,1.78434905]
[1680382835113,0.95686553,1816.8,1816.7,2.78434905]
[1680382835513,0.95686553,1816.8,1816.7,1.78434905]
[1680382835814,0.95686553,1816.8,1816.7,2.78434905]
[1680382837419,0.95686553,1816.8,1816.7,1.78434905]
[1680382837912,0.95686553,1816.8,1816.7,2.78434905]
[1680382840217,0.95686553,1816.8,1816.7,3.07074809]
[1680382840418,1.53453776,1816.8,1816.7,3.07074809]
[1680382840721,1.5345338,1816.8,1816.7,3.07074809]
[1680382840923,0.66794588,1816.8,1816.7,3.07074809]
[1680382841614,1.5345338,1816.8,1816.7,3.07074809]
[1680382842121,0.66794588,1816.8,1816.7,3.07074809]
[1680382842321,0.95686553,1816.8,1816.7,3.07074809]
[1680382842616,1.53451281,1816.8,1816.7,3.07074809]
[1680382843113,0.66792489,1816.8,1816.7,3.07074809]
[1680382843816,1.53451281,1816.8,1816.7,3.07074809]
[1680382844014,0.66792489,1816.8,1816.7,3.89574809]
[1680382844719,1.53451281,1816.8,1816.7,3.89574809]
[1680382845109,0.66792489,1816.8,1816.7,3.89574809]
[1680382845717,1.53451281,1816.8,1816.7,3.89574809]
[1680382845918,0.66792489,1816.8,1816.7,3.89574809]
[1680382846327,0.95686553,1816.8,1816.7,3.89574809]
[1680382846519,0.66788224,1816.8,1816.7,3.89574809]
[1680382846717,0.95686553,1816.8,1816.7,3.89574809]
[1680382846913,1.53447678,1816.8,1816.7,3.89574809]
[1680382847326,1.53447678,1816.8,1816.7,2.89574809]
[1680382847520,0.95686553,1816.8,1816.7,1.78431714]
[1680382849220,0.95071488,1816.8,1816.7,2.78431714]
[1680382849421,0.95071488,1816.8,1816.7,1.78432308]
[1680382849925,0.95071488,1816.8,1816.7,1.15465109]
[1680382851718,0.08412696,1816.8,1816.7,2.15465109]
[1680382851915,0.9505424,1816.8,1816.7,2.15465109]
[1680382852530,0.9505424,1816.8,1816.7,1.15465109]
[1680382853230,0.9505424,1816.8,1816.7,2.15465109]
[1680382853426,0.9505424,1816.8,1816.7,1.15465109]
[1680382864632,0.9505424,1816.8,1816.7,2.15465109]
[1680382864931,0.9505424,1816.8,1816.7,1.15465109]
[1680382868125,3.06000732,1816.8,1816.7,0.86621537]
[1680382868630,3.06000732,1816.8,1816.6,0.86621537]
[1680382868832,1.8659598,1816.7,1816.6,0.86621537]
[1680382869023,1.95559265,1816.7,1816.6,0.86621537]
[1680382870428,3.88851321,1816.7,1816.6,0.86621537]
[1680382870826,3.06351321,1816.7,1816.5,0.86621537]
[1680382871029,0.86562547,1816.6,1816.5,1.86621537]
[1680382871223,0.86562547,1816.6,1816.5,0.86621537]
[1680382872627,1.4425416,1816.6,1816.5,0.86621537]
[1680382872932,0.57691613,1816.6,1816.5,1.0]
[1680382873227,0.57691613,1816.6,1816.5,2.15465109]
[1680382873434,0.57691613,1816.6,1816.5,2.97665109]
[1680382876434,0.66654898,1816.7,1816.5,2.97665109]
[1680382876636,0.66654898,1816.7,1816.6,4.07320661]
[1680382878638,1.53217445,1816.7,1816.6,4.07320661]
[1680382878843,0.66654898,1816.7,1816.6,4.07320661]
[1680382879937,1.53217445,1816.7,1816.6,4.07320661]
[1680382880138,0.66654898,1816.7,1816.6,4.07320661]
[1680382886442,1.53188755,1816.7,1816.6,4.07320661]
[1680382886647,0.66626208,1816.7,1816.6,4.07320661]
[1680382886848,1.53188755,1816.7,1816.6,4.07320661]
[1680382889451,0.95525832,1816.7,1816.6,4.07320661]
[1680382890046,0.95525832,1816.7,1816.6,0.86540661]
[1680382890253,1.78025832,1816.7,1816.6,3.2078]
[1680382891047,1.78025832,1816.7,1816.4,5.36245109]
[1680382891241,1.39875754,1816.6,1816.5,1.0]
[1680382891553,1.4793659,1816.6,1816.5,1.0]
[1680382894153,1.4793659,1816.6,1816.5,2.15465109]
[1680382896752,1.4793659,1816.6,1816.5,1.15465109]
[1680382896953,0.6573659,1816.6,1816.5,1.15465109]
[1680382897856,0.6573659,1816.6,1816.5,2.15465109]
[1680382898359,0.6573659,1816.6,1816.5,1.15465109]
[1680382899154,0.6573659,1816.6,1816.5,2.15465109]
[1680382901864,0.6573659,1816.6,1816.5,1.15465109]
[1680382905065,1.52299137,1816.6,1816.5,1.15465109]
[1680382906971,2.34399137,1816.6,1816.5,1.15465109]
[1680382907961,1.76723383,1816.6,1816.5,1.15465109]
[1680382915573,1.76723383,1816.6,1816.5,1.78481352]
[1680382920270,1.76723383,1816.6,1816.5,1.15465109]
[1680382922084,1.76723383,1816.6,1816.5,1.78479364]
[1680382922373,1.76723383,1816.6,1816.5,2.78479364]
[1680382923576,1.76723383,1816.6,1816.5,1.78479364]